bitfinex-derivatives/quotes_SOLF0:USTF0_20241231
["timestamp","ask_amount","ask_price","bid_price","bid_amount"]
[1735655601963,19.71640176,198.02,197.89,290.28]
[1735655602159,6.211,198.08,197.9,290.1183]
[1735655602361,29.20740176,198.08,197.9,296.269]
[1735655602665,2.5277,198.06,197.9,296.269]
[1735655602868,2.5277,198.06,197.92,19.71640176]
[1735655603062,2.5277,198.06,197.99,2.5284]
[1735655603268,2.50799892,198.18,197.98,3.28]
[1735655603469,2.5269,198.12,197.99,293.1918]
[1735655603666,19.71640176,198.14,198.0,3.1183]
[1735655603868,3.28,198.15,198.0,290.1183]
[1735655604171,8.9382,198.17,198.03,19.71640176]
[1735655604369,23.13939963,198.33,198.06,287.0]
[1735655604560,2.5257,198.22,198.07,19.71640176]
[1735655604867,19.71640176,198.28,198.11,19.71640176]
[1735655605073,19.71640176,198.28,198.12,9.4462]
[1735655605283,19.71640176,198.28,198.19,2.5259]
[1735655605464,9.2704,198.29,198.12,9.4462]
[1735655605669,19.71640176,198.25,198.12,9.4462]
[1735655605864,22.97640176,198.25,198.12,9.4462]
[1735655606271,5.7853,198.25,198.17,2.5262]
[1735655606467,3.26,198.25,198.12,296.4462]
[1735655606662,19.71640176,198.22,198.12,293.1862]
[1735655608183,19.71640176,198.22,198.12,289.9885]
[1735655608379,19.71640176,198.22,198.12,287.0]
[1735655609173,2.5258,198.21,198.12,287.0]
[1735655609400,19.71640176,198.22,198.12,287.0]
[1735655610173,19.71640176,198.22,198.17,2.5262]
[1735655610375,19.71640176,198.22,198.12,287.0]
[1735655610569,19.71640176,198.22,198.16,2.5264]
[1735655610782,19.71640176,198.22,198.12,287.0]
[1735655610980,2.5261,198.19,198.08,289.9118]
[1735655611183,6.0061,198.19,198.08,289.9118]
[1735655611383,3.48,198.19,198.08,289.9118]
[1735655611578,2.5264,198.16,198.1,2.5271]
[1735655611777,3.48,198.19,198.06,287.0]
[1735655611778,19.71640176,198.14,198.06,287.0]
[1735655612083,3.48,198.13,198.01,290.48]
[1735655612287,3.48,198.13,198.01,3.48]
[1735655612582,19.71640176,198.1,197.99,9.1349]
[1735655612973,3.48,198.13,197.99,9.1349]
[1735655613174,19.71640176,198.11,197.99,9.1349]
[1735655613577,19.71640176,198.07,197.92,287.0]
[1735655613782,3.48,198.06,197.92,287.0]
[1735655613981,2.5278,198.05,197.96,2.5289]
[1735655614189,3.48,198.06,197.92,287.0]
[1735655615781,3.48,198.06,197.96,2.5289]
[1735655615782,2.5279,198.05,197.96,2.5289]
[1735655615981,3.48,198.06,197.92,287.0]
[1735655617082,3.48,198.06,197.9,310.19640176]
[1735655617282,3.48,198.1,197.94,306.71640176]
[1735655617487,19.71640176,198.15,197.98,306.71640176]
[1735655617693,3.48,198.16,198.04,287.0]
[1735655618487,3.48,198.16,198.12,2.5269]
[1735655618784,3.48,198.16,198.04,287.0]
[1735655618988,3.48,198.21,198.04,287.0]
[1735655619182,3.48,198.21,198.06,306.71640176]
[1735655619384,2.9438,198.26,198.1,19.71640176]
[1735655619587,3.48,198.25,198.11,299.739]
[1735655619889,6.0053,198.25,198.15,289.5265]
[1735655620092,6.0053,198.25,198.15,287.0]
[1735655620493,3.48,198.25,198.18,2.5261]
[1735655620790,3.48,198.25,198.15,287.0]
[1735655623092,3.48,198.25,198.11,299.739]
[1735655623495,2.5256,198.22,198.17,2.5262]
[1735655625597,19.71640176,198.23,198.11,299.739]
[1735655626004,2.5255,198.24,198.18,2.526]
[1735655626198,23.19640176,198.25,198.11,299.739]
[1735655627692,23.19640176,198.25,198.11,296.259]
[1735655628297,2.5257,198.22,198.15,2.5265]
[1735655628497,2.5257,198.22,198.11,296.259]
[1735655628897,2.5257,198.22,198.16,2.5263]
[1735655629102,2.5257,198.22,198.11,296.259]
[1735655629502,2.5257,198.22,198.17,2.5262]
[1735655630099,2.5257,198.22,198.18,2.5261]
[1735655630307,23.19640176,198.25,198.18,2.5261]
[1735655630597,23.19640176,198.25,198.11,296.259]
[1735655630598,19.71640176,198.25,198.11,296.259]
[1735655630801,56.24,198.28,198.11,296.259]
[1735655631001,2.9438,198.31,198.16,287.0]
[1735655631201,3.7,198.34,198.17,3.7]
[1735655631405,21.84400075,198.33,198.17,290.7]
[1735655631707,25.54400075,198.33,198.17,290.7]
[1735655632020,2.5248,198.29,198.24,2.5253]
[1735655632204,25.54400075,198.33,198.17,290.7]
[1735655632606,21.84400075,198.33,198.17,290.7]
[1735655633106,2.5249,198.28,198.24,2.5254]
[1735655633703,2.5249,198.28,198.17,290.7]
[1735655634103,21.84400075,198.33,198.17,290.7]
[1735655634301,2.5248,198.29,198.17,290.7]
[1735655634505,21.84400075,198.33,198.23,2.5255]
[1735655634705,21.84400075,198.33,198.17,290.7]
[1735655635404,2.5246,198.3,198.25,2.5252]
[1735655636305,25.54400075,198.33,198.17,290.7]
[1735655636505,25.54400075,198.33,198.17,287.0]
[1735655636807,25.54400075,198.33,198.18,3.7]
[1735655637519,2.5246,198.31,198.18,3.7]
[1735655638010,2.5246,198.31,198.18,290.7]
[1735655638207,2.12759899,198.33,198.18,310.41640176]
[1735655638400,19.71640176,198.38,198.22,306.71640176]
[1735655638701,19.71640176,198.38,198.23,2.9679]
[1735655639007,19.71640176,198.42,198.24,290.7]
[1735655639207,23.41640176,198.42,198.24,290.7]
[1735655639413,2.5237,198.38,198.33,2.5242]
[1735655639600,3.7,198.41,198.24,290.7]
[1735655640004,2.524,198.36,198.24,290.7]
[1735655640310,3.7,198.41,198.24,290.7]
[1735655641099,23.41640176,198.42,198.31,287.0]
[1735655641309,19.71640176,198.42,198.32,3.1524]
[1735655641510,2.523,198.43,198.37,2.5237]
[1735655641809,3.7,198.45,198.32,290.1524]
[1735655642107,19.71640176,198.42,198.35,2.524]
[1735655642316,19.71640176,198.46,198.32,290.1524]
[1735655643419,19.71640176,198.42,198.32,290.1524]
[1735655643708,2.5233,198.41,198.36,2.5238]
[1735655643910,19.71640176,198.42,198.33,2.9529]
[1735655644303,3.7,198.41,198.33,2.9529]
[1735655646109,19.71640176,198.38,198.26,287.0]
[1735655646304,2.5249,198.29,198.25,2.5252]
[1735655646911,3.7,198.32,198.23,293.1599]
[1735655647415,2.5247,198.3,198.25,2.5252]
[1735655648414,3.7,198.32,198.24,2.5254]
[1735655648616,3.7,198.32,198.23,293.1599]
[1735655648911,19.71640176,198.3,198.23,287.0]
[1735655649119,19.71640176,198.3,198.16,293.032]
[1735655649314,3.7,198.32,198.16,295.9581]
[1735655649514,19.71640176,198.31,198.16,295.9581]
[1735655650011,2.5248,198.29,198.24,2.5254]
[1735655650225,19.71640176,198.31,198.16,295.9581]
[1735655650514,2.5252,198.26,198.21,2.5257]
[1735655650716,19.71640176,198.31,198.16,295.9581]
[1735655651012,2.5251,198.27,198.23,2.5255]
[1735655651210,3.7,198.3,198.16,295.9581]
[1735655651415,3.7,198.3,198.17,3.7]
[1735655651617,3.7,198.3,198.17,290.7]
[1735655652119,3.7,198.38,198.23,306.71640176]
[1735655652308,3.7,198.37,198.24,3.7]
[1735655652513,3.7,198.37,198.25,6.0751]
[1735655653024,3.7,198.37,198.26,2.9589]
[1735655653213,2.5244,198.33,198.27,2.525]
[1735655653621,2.5244,198.33,198.26,2.9589]
[1735655653811,2.5244,198.33,198.28,2.5248]
[1735655654014,2.5244,198.33,198.26,2.9589]
[1735655654321,3.7,198.36,198.29,2.5248]
[1735655654519,2.5242,198.35,198.29,2.5248]
[1735655654715,2.5242,198.35,198.26,2.9589]
[1735655654915,3.7,198.36,198.29,2.5248]
[1735655655724,2.5243,198.33,198.28,2.5249]
[1735655655920,3.7,198.36,198.26,2.9589]
[1735655657030,3.7,198.36,198.29,2.5247]
[1735655657228,3.7,198.36,198.26,2.9589]
[1735655657418,2.5247,198.3,198.26,5.484]
[1735655657723,3.7,198.36,198.26,2.9589]
[1735655659127,3.74,198.37,198.29,2.5248]
[1735655659326,3.74,198.37,198.26,2.9589]
[1735655659526,2.5235,198.39,198.34,2.524]
[1735655659730,2.5235,198.39,198.26,293.6989]
[1735655659928,3.74,198.4,198.26,293.6989]
[1735655660223,6.2634,198.4,198.36,2.5239]
[1735655660620,2.5234,198.4,198.36,2.5239]
[1735655660826,2.96086341,198.44,198.27,306.71640176]
[1735655661439,2.523,198.43,198.38,2.5235]
[1735655661820,2.96086341,198.44,198.27,306.71640176]
[1735655662023,2.523,198.43,198.38,2.5236]
[1735655662533,2.96086341,198.44,198.27,306.71640176]
[1735655663025,6.70086341,198.44,198.27,306.71640176]
[1735655664623,2.5236,198.39,198.27,306.71640176]
[1735655664924,67.00045897,198.56,198.36,306.71640176]
[1735655665130,67.00045897,198.56,198.4,19.71640176]
[1735655665328,24.64571794,198.62,198.44,19.71640176]
[1735655665523,40.6221197,198.62,198.45,3.74]
[1735655665830,2.5212,198.57,198.5,2.522]
[1735655666039,3.74,198.61,198.5,2.522]
[1735655666222,19.71640176,198.58,198.44,287.0]
[1735655666423,2.5216,198.54,198.45,290.74]
[1735655666624,2.5216,198.54,198.45,287.0]
[1735655666925,2.5216,198.54,198.48,2.5222]
[1735655667130,19.71640176,198.58,198.45,287.0]
[1735655667326,23.45640176,198.58,198.46,3.0339]
[1735655668028,2.522,198.51,198.47,2.5224]
[1735655668529,2.5218,198.52,198.46,3.0339]
[1735655668729,23.45640176,198.58,198.46,3.0339]
[1735655668927,19.71640176,198.54,198.46,3.0339]
[1735655669123,19.71640176,198.54,198.45,287.0]
[1735655669327,19.71640176,198.54,198.4,290.74]
[1735655669531,19.71640176,198.54,198.4,287.0]
[1735655669731,19.71640176,198.54,198.43,2.5229]
[1735655670035,3.138,198.53,198.38,293.6513]
[1735655670334,3.74,198.52,198.38,293.6513]
[1735655670833,2.5224,198.48,198.38,293.6513]
[1735655671038,3.74,198.52,198.38,293.6513]
[1735655671532,3.138,198.53,198.38,293.6513]
[1735655671733,3.74,198.52,198.38,293.6513]
[1735655671933,3.74,198.52,198.38,289.9113]
[1735655672144,19.71640176,198.51,198.38,289.9113]
[1735655672337,3.74,198.52,198.38,289.9113]
[1735655672536,2.5222,198.49,198.44,2.5227]
[1735655672746,3.74,198.52,198.44,2.5227]
[1735655673033,2.5224,198.48,198.43,2.5229]
[1735655673240,3.74,198.52,198.38,289.9113]
[1735655673535,19.71640176,198.5,198.38,289.9113]
[1735655673735,19.71640176,198.5,198.38,2.9113]
[1735655674836,19.71640176,198.5,198.4,2.5233]
[1735655675032,19.71640176,198.5,198.35,6.3131]
[1735655675335,2.5228,198.45,198.41,2.5231]
[1735655675536,19.71640176,198.5,198.35,6.3131]
[1735655675737,2.5226,198.46,198.4,2.5233]
[1735655675931,19.71640176,198.5,198.35,6.3131]
[1735655676338,2.5225,198.47,198.35,6.3131]
[1735655676535,23.69640176,198.5,198.35,6.3131]
[1735655677738,19.71640176,198.47,198.35,6.3131]
[1735655678930,2.5233,198.41,198.36,2.5238]
[1735655679149,23.69640176,198.43,198.31,6.172]
[1735655679537,2.5233,198.41,198.31,6.172]
[1735655679938,2.5234,198.4,198.36,2.5237]
[1735655680141,3.98,198.43,198.36,2.5237]
[1735655680340,3.98,198.43,198.31,6.172]
[1735655680544,19.71640176,198.43,198.31,6.172]
[1735655680735,3.2211,198.42,198.31,6.172]
[1735655680941,3.2211,198.42,198.35,2.524]
[1735655681138,3.2211,198.42,198.31,6.172]
[1735655681553,2.5237,198.38,198.31,6.172]
[1735655681843,3.2211,198.42,198.31,6.172]
[1735655682040,3.2211,198.42,198.31,5.5013]
[1735655682251,3.2211,198.42,198.31,2.9769]
[1735655682452,19.71640176,198.43,198.31,289.9769]
[1735655682644,19.71640176,198.43,198.31,293.1149]
[1735655685141,2.5237,198.38,198.33,2.5242]
[1735655685639,2.5236,198.38,198.31,289.9769]
[1735655685841,22.88220176,198.43,198.33,2.5241]
[1735655686043,22.88220176,198.43,198.28,2.9456]
[1735655686044,39.43280352,198.34,198.2,15.23636656]
[1735655686242,2.5259,198.2,198.19,82.08327664]
[1735655686446,28.48011444,198.2,198.18,100.88156029]
[1735655687045,28.48011444,198.2,198.1,2.5271]
[1735655687046,24.50011444,198.2,198.1,2.5271]
[1735655687343,12.25005722,198.13,198.08,293.0439]
[1735655687547,12.25005722,198.13,198.08,6.0439]
[1735655687548,2.5271,198.11,198.08,6.0439]
[1735655687843,12.25005722,198.13,198.07,201.2711459]
[1735655688251,2.5269,198.12,198.06,2.5277]
[1735655689545,22.13437884,198.15,198.09,2.5273]
[1735655689750,3.98,198.18,198.04,287.0]
[1735655689944,19.60777884,198.2,198.04,306.60777884]
[1735655690951,2.5261,198.19,198.12,2.5269]
[1735655691359,19.60777884,198.2,198.12,2.5269]
[1735655691546,19.60777884,198.2,198.08,3.98]
[1735655692148,2.5261,198.19,198.13,2.5268]
[1735655692343,19.60777884,198.2,198.08,3.98]
[1735655692553,23.58777884,198.23,198.08,3.98]
[1735655693564,19.60777884,198.26,198.1,19.60777884]
[1735655694552,19.60777884,198.26,198.17,2.5262]
[1735655695052,2.5254,198.25,198.18,2.526]
[1735655695256,19.60777884,198.26,198.1,306.60777884]
[1735655695553,2.5255,198.23,198.14,289.5266]
[1735655695852,59.72858119,198.36,198.18,19.60777884]
[1735655696045,19.60777884,198.34,198.19,2.9735]
[1735655696241,19.60777884,198.34,198.25,2.5252]
[1735655696242,2.5245,198.31,198.25,2.5252]
[1735655697655,2.5248,198.29,198.19,289.9735]
[1735655697848,19.60777884,198.34,198.19,289.9735]
[1735655698052,19.60777884,198.31,198.19,289.9735]
[1735655698253,19.60777884,198.31,198.2,2.5259]
[1735655698254,2.5251,198.27,198.2,2.5259]
[1735655698447,3.98,198.3,198.19,289.9735]
[1735655698647,2.5249,198.28,198.22,2.5256]
[1735655698848,3.98,198.3,198.19,289.9735]
[1735655699256,3.98,198.3,198.17,3.98]
[1735655699655,3.98,198.3,198.18,3.0387]
[1735655700750,19.60777884,198.27,198.15,293.1775]
[1735655701048,3.98,198.3,198.15,293.1775]
[1735655701254,3.98,198.32,198.2,19.60777884]
[1735655701456,6.2069,198.37,198.2,306.60777884]
[1735655701661,3.98,198.36,198.2,306.60777884]
[1735655701857,6.2069,198.37,198.24,19.60777884]
[1735655702055,3.98,198.36,198.24,306.60777884]
[1735655702250,3.1087,198.37,198.28,19.60777884]
[1735655702463,3.98,198.4,198.28,306.60777884]
[1735655702652,3.98,198.4,198.35,2.5239]
[1735655703056,2.9384,198.42,198.3,3.0449]
[1735655703257,2.9384,198.42,198.36,2.5238]
[1735655704356,2.9384,198.42,198.31,19.60777884]
[1735655704655,6.50516827,198.43,198.34,19.60777884]
[1735655704859,9.02816827,198.43,198.36,2.5238]
[1735655705058,9.02816827,198.43,198.34,19.60777884]
[1735655705059,6.0617,198.46,198.34,19.60777884]
[1735655705259,3.98,198.47,198.37,306.60777884]
[1735655705455,3.98,198.47,198.4,2.5234]
[1735655705655,3.98,198.47,198.37,306.60777884]
[1735655705857,2.5221,198.5,198.44,2.5227]
[1735655706071,3.86,198.51,198.4,306.60777884]
[1735655706567,3.86,198.51,198.4,19.60777884]
[1735655706856,3.86,198.51,198.43,2.523]
[1735655708257,3.86,198.51,198.4,19.60777884]
[1735655708463,2.5225,198.47,198.42,2.5231]
[1735655708660,3.86,198.51,198.39,2.9116]
[1735655709060,3.86,198.51,198.43,2.523]
[1735655709263,3.86,198.51,198.39,2.9116]
[1735655709558,3.86,198.51,198.4,2.5234]
[1735655709864,3.86,198.51,198.38,287.0]
[1735655710059,2.5227,198.46,198.41,2.5232]
[1735655710264,2.5227,198.46,198.37,23.46777884]
[1735655710265,3.86,198.51,198.37,310.46777884]
[1735655711966,3.86,198.51,198.37,306.60777884]
[1735655712969,2.5227,198.46,198.41,2.5232]
[1735655713164,3.86,198.51,198.37,19.60777884]
[1735655713573,2.5233,198.42,198.37,2.5238]
[1735655714478,2.5232,198.42,198.37,2.5238]
[1735655714873,3.86,198.45,198.31,313.68427884]
[1735655715073,3.86,198.45,198.31,309.82427884]
[1735655715369,2.523,198.43,198.38,2.5235]
[1735655715773,3.86,198.45,198.34,19.60777884]
[1735655715968,3.86,198.47,198.34,306.60777884]
[1735655716170,3.86,198.47,198.37,306.60777884]
[1735655717084,3.86,198.47,198.34,19.60777884]
[1735655717381,3.86,198.47,198.37,19.60777884]
[1735655717773,3.86,198.47,198.34,19.60777884]
[1735655718076,19.60777884,198.45,198.33,287.0]
[1735655718279,19.60777884,198.45,198.35,2.5238]
[1735655718577,19.60777884,198.45,198.33,287.0]
[1735655718769,2.5236,198.38,198.33,289.5241]
[1735655718977,19.60777884,198.39,198.2,310.46777884]
[1735655719173,3.1087,198.37,198.21,6.2106]
[1735655719376,3.1087,198.37,198.21,9.1537]
[1735655719572,3.1087,198.37,198.21,296.1537]
[1735655719972,3.1087,198.37,198.25,2.5251]
[1735655719973,2.5244,198.32,198.25,2.5251]
[1735655720176,3.1087,198.37,198.21,296.1537]
[1735655720376,6.137,198.37,198.21,296.1537]
[1735655721176,2.5245,198.3,198.21,296.1537]
[1735655721379,19.60777884,198.36,198.21,296.1537]
[1735655721780,19.60777884,198.33,198.17,287.0]
[1735655722084,19.60777884,198.3,198.14,19.60777884]
[1735655722278,2.5257,198.21,198.11,292.8531]
[1735655722590,3.86,198.21,198.11,5.8531]
[1735655723107,3.86,198.21,198.11,2.91]
[1735655723389,3.86,198.21,198.06,19.60777884]
[1735655723682,3.86,198.21,198.09,19.60777884]
[1735655723881,3.86,198.21,198.12,19.60777884]
[1735655724178,3.86,198.21,198.12,306.60777884]
[1735655724775,2.5253,198.24,198.12,306.60777884]
[1735655724776,6.3853,198.24,198.12,306.60777884]
[1735655724983,6.3853,198.24,198.18,2.526]
[1735655725284,2.5254,198.23,198.18,2.526]
[1735655725481,3.86,198.24,198.12,306.60777884]
[1735655725682,3.86,198.24,198.12,287.0]
[1735655726183,3.86,198.24,198.14,2.5266]
[1735655726374,3.86,198.24,198.12,287.0]
[1735655726777,3.86,198.24,198.12,289.5267]
[1735655726977,3.86,198.24,198.12,287.0]
[1735655727174,6.3855,198.23,198.18,2.526]
[1735655727380,3.0665,198.25,198.15,19.60777884]
[1735655727576,57.19833348,198.3,198.15,19.60777884]
[1735655727876,2.9779,198.31,198.18,306.60777884]
[1735655728390,3.86,198.32,198.21,19.60777884]
[1735655728883,3.86,198.32,198.24,19.60777884]
[1735655729082,2.5239,198.35,198.24,19.60777884]
[1735655729279,3.86,198.34,198.18,287.0]
[1735655729476,3.86,198.34,198.22,19.60777884]
[1735655730389,3.86,198.34,198.25,19.60777884]
[1735655730593,3.86,198.34,198.22,306.60777884]
[1735655730791,3.86,198.34,198.22,287.0]
[1735655731185,3.86,198.34,198.29,2.5246]
[1735655731385,3.86,198.34,198.23,19.60777884]
[1735655731586,3.0752,198.37,198.26,19.60777884]
[1735655731792,5.5989,198.37,198.31,2.5244]
[1735655731991,5.5989,198.37,198.23,23.46777884]
[1735655731992,3.0752,198.37,198.23,23.46777884]
[1735655732180,3.0752,198.37,198.23,19.60777884]
[1735655732389,2.5239,198.36,198.3,2.5245]
[1735655732592,2.5239,198.36,198.23,19.60777884]
[1735655732986,3.0752,198.37,198.23,19.60777884]
[1735655733588,3.0752,198.37,198.23,306.60777884]
[1735655733784,3.86,198.36,198.23,306.60777884]
[1735655733988,3.86,198.36,198.23,287.0]
[1735655734393,19.60777884,198.33,198.23,287.0]
[1735655734700,19.60777884,198.33,198.17,290.0957]
[1735655734989,25.99167884,198.36,198.19,306.60777884]
[1735655735190,3.86,198.36,198.22,19.60777884]
[1735655735388,3.86,198.36,198.22,23.46777884]
[1735655735584,3.86,198.36,198.26,289.525]
[1735655735789,3.0752,198.37,198.26,287.0]
[1735655735988,2.9777,198.38,198.26,287.0]
[1735655736295,2.9777,198.38,198.27,293.0899]
[1735655737187,2.5236,198.37,198.27,293.0899]
[1735655737693,6.8377,198.38,198.27,293.0899]
[1735655738586,2.5239,198.35,198.3,2.5245]
[1735655738786,6.8377,198.38,198.3,2.5245]
[1735655738982,19.60777884,198.35,198.3,2.5245]
[1735655739185,19.60777884,198.35,198.27,289.5248]
[1735655739395,19.60777884,198.35,198.27,287.0]
[1735655739889,19.60777884,198.35,198.27,289.5248]
[1735655740392,19.60777884,198.31,198.19,292.9664]
[1735655740587,3.86,198.3,198.19,292.9664]
[1735655741001,2.5248,198.28,198.19,292.9664]
[1735655741292,19.60777884,198.27,198.19,5.9664]
[1735655741491,2.5254,198.23,198.19,2.5259]
[1735655741697,19.60777884,198.21,198.13,3.0933]
[1735655741891,3.86,198.2,198.13,3.0933]
[1735655742086,19.60777884,198.18,198.11,290.0376]
[1735655742293,19.60777884,198.18,198.11,3.0376]
[1735655742590,19.60777884,198.18,198.03,290.0509]
[1735655742796,2.5265,198.15,198.09,2.5271]
[1735655743001,3.86,198.14,198.09,2.5271]
[1735655743398,3.86,198.14,198.04,290.0117]
[1735655743692,19.60777884,198.12,198.04,290.0117]
[1735655744088,19.60777884,198.12,198.02,3.0933]
[1735655744294,19.60777884,198.12,198.0,2.5283]
[1735655744493,19.60777884,198.12,197.97,293.095]
[1735655744705,2.528,198.03,197.97,3.0117]
[1735655744889,3.86,198.02,197.96,3.0863]
[1735655745096,19.60777884,198.08,197.96,3.0863]
[1735655745294,3.86,198.07,197.96,3.0863]
[1735655745991,19.60777884,198.08,197.96,3.0863]
[1735655746189,6.3875,198.07,198.01,2.5282]
[1735655746575,3.86,198.07,197.96,3.0863]
[1735655746806,2.5279,198.04,197.97,2.5287]
[1735655746998,2.5279,198.04,197.96,3.0863]
[1735655747199,2.528,198.03,197.96,5.615]
[1735655747399,3.86,198.07,197.88,312.70277884]
[1735655747601,19.60777884,198.03,197.89,4.15203877]
[1735655747804,19.60777884,198.03,197.89,3.2229]
[1735655748196,19.60777884,198.0,197.89,3.2229]
[1735655748413,19.60777884,197.96,197.85,287.0]
[1735655749006,2.5294,197.92,197.85,2.5302]
[1735655749198,3.86,197.91,197.85,2.5302]
[1735655749600,6.3895,197.91,197.82,3.2229]
[1735655749804,3.86,197.91,197.82,3.2229]
[1735655750010,2.5299,197.89,197.82,3.2229]
[1735655750204,19.60777884,197.88,197.72,310.46777884]
[1735655750400,19.60777884,197.88,197.73,3.1853]
[1735655750699,2.5304,197.84,197.73,290.1853]
[1735655751002,3.86,197.83,197.73,290.1853]
[1735655751600,3.86,197.85,197.73,290.1853]
[1735655751901,3.86,197.85,197.76,2.5313]
[1735655752103,3.86,197.85,197.73,290.1853]
[1735655753603,22.56877884,197.91,197.75,19.60777884]
[1735655753802,3.86,197.9,197.75,19.60777884]
[1735655754009,19.60777884,197.88,197.79,287.0]
[1735655754406,19.60777884,197.88,197.77,2.5312]
[1735655754607,19.60777884,197.85,197.7,293.2493]
[1735655754809,19.60777884,197.82,197.7,3.1251]
[1735655756304,2.5313,197.77,197.7,5.6572]
[1735655756510,6.3913,197.77,197.7,5.6572]
[1735655757402,2.5316,197.75,197.7,3.1251]
[1735655757603,3.86,197.77,197.67,2.9598]
[1735655758403,2.5314,197.77,197.67,2.9598]
[1735655758607,3.86,197.76,197.67,2.9598]
[1735655759308,6.3914,197.76,197.67,2.9598]
[1735655759511,3.86,197.76,197.67,2.9598]
[1735655760010,23.46777884,197.76,197.67,2.9598]
[1735655760811,3.86,197.76,197.67,2.9598]
[1735655761216,3.86,197.76,197.68,2.5324]
[1735655761419,3.86,197.76,197.67,2.9598]
[1735655761914,2.5318,197.74,197.67,2.9598]
[1735655762119,3.86,197.76,197.67,2.9598]
[1735655762618,2.5317,197.75,197.68,2.5324]
[1735655762816,3.86,197.76,197.67,2.9598]
[1735655763116,2.531,197.8,197.73,2.5318]
[1735655763422,3.88,197.81,197.67,289.9598]
[1735655763644,3.88,197.81,197.77,2.5313]
[1735655763912,52.6,197.84,197.69,306.60777884]
[1735655764111,3.88,197.83,197.72,19.60777884]
[1735655764319,3.88,197.83,197.73,2.9934]
[1735655764512,3.88,197.83,197.79,2.531]
[1735655764716,3.88,197.83,197.74,3.1372]
[1735655764923,3.94,197.89,197.74,290.1372]
[1735655765215,3.94,197.89,197.76,19.60777884]
[1735655765416,3.94,197.89,197.77,293.952]
[1735655767120,3.94,197.89,197.8,2.5308]
[1735655767320,3.94,197.89,197.77,293.952]
[1735655768123,3.94,197.89,197.84,2.5304]
[1735655768718,23.54777884,197.89,197.77,3.012]
[1735655769526,19.60777884,197.86,197.77,3.012]
[1735655769724,19.60777884,197.83,197.74,3.1372]
[1735655770027,19.60777884,197.8,197.74,3.1372]
[1735655770316,22.13917884,197.77,197.72,2.5319]
[1735655770517,3.94,197.76,197.65,293.1243]
[1735655771222,2.5316,197.75,197.7,2.5321]
[1735655771623,2.5306,197.83,197.77,2.5312]
[1735655771817,23.54777884,197.85,197.77,2.5312]
[1735655772122,3.94,197.85,197.69,290.94]
[1735655772321,3.94,197.85,197.72,31.94464504]
[1735655772616,3.94,197.85,197.81,2.5307]
[1735655772824,3.94,197.85,197.73,287.0]
[1735655773113,3.94,197.85,197.74,3.1948]
[1735655773634,3.94,197.85,197.75,2.9871]
[1735655773724,3.94,197.85,197.81,2.5307]
[1735655775222,3.94,197.85,197.82,2.5305]
[1735655775423,31.94464504,197.87,197.75,2.9871]
[1735655775625,31.94464504,197.91,197.76,290.0361]
[1735655775829,31.94464504,197.91,197.77,0.93019281]
[1735655776132,3.94,197.98,197.82,31.94464504]
[1735655776339,3.94,197.98,197.82,322.88464504]
[1735655776340,2.5287,197.98,197.82,322.88464504]
[1735655776623,2.5287,197.98,197.83,0.92988712]
[1735655776816,6.9847,197.99,197.82,290.94]
[1735655777024,31.94464504,197.95,197.82,290.94]
[1735655777224,31.94464504,197.95,197.78,31.94464504]
[1735655777225,31.94464504,197.95,197.78,318.94464504]
[1735655777419,2.5297,197.9,197.85,2.5303]